fUSD/lending_fUSD_20240331
["ID","MTS","AMOUNT","RATE_DAILY","PERIOD"]
[321086723,1711889437054,-500.0,0.00046849,30]
[321086724,1711889437063,-426.28303479,0.00046849,30]
[321086725,1711889437073,-246.72837867,0.0004685,30]
[321086726,1711889437082,-150.0,0.0004685,30]
[321086727,1711889437091,-150.0,0.0004685,30]
[321086728,1711889437101,-152.78506965,0.0004685,30]
[321086729,1711889437110,-150.0,0.0004685,30]
[321086730,1711889437120,-152.56823781,0.0004685,30]
[321086731,1711889437129,-150.0,0.0004685,30]
[321086732,1711889437138,-640.0,0.000469,37]
[321086733,1711889437147,-155.62,0.000469,5]
[321086734,1711889437158,-155.62,0.000469,5]
[321086735,1711889437168,-155.62,0.000469,5]
[321086736,1711889437178,-155.62,0.000469,5]
[321086737,1711889437187,-155.62,0.000469,5]
[321086738,1711889437198,-155.62,0.000469,5]
[321086739,1711889437207,-155.62,0.000469,5]
[321086740,1711889437217,-5575.02,0.000469,5]
[321086741,1711889437226,-155.62,0.000469,5]
[321086742,1711889437236,-5575.02,0.000469,5]
[321086743,1711889437245,-155.62,0.000469,5]
[321086744,1711889437255,-5575.02,0.000469,5]
[321086745,1711889437265,-155.62,0.000469,5]
[321086746,1711889437275,-5575.02,0.000469,5]
[321086747,1711889437284,-155.62,0.000469,5]
[321086748,1711889437294,-5575.02,0.000469,5]
[321086749,1711889437304,-155.62,0.000469,5]
[321086750,1711889437314,-5575.02,0.000469,5]
[321086751,1711889437323,-155.62,0.000469,5]
[321086752,1711889437333,-5575.02,0.000469,5]
[321086753,1711889437343,-155.62,0.000469,5]
[321086754,1711889437353,-5575.02,0.000469,5]
[321086755,1711889437363,-155.62,0.000469,5]
[321086756,1711889437373,-5575.02,0.000469,5]
[321086757,1711889437382,-155.62,0.000469,5]
[321086758,1711889437392,-5575.02,0.000469,5]
[321086759,1711889437402,-155.62,0.000469,5]
[321086760,1711889437411,-5575.02,0.000469,5]
[321086761,1711889437421,-155.62,0.000469,5]
[321086762,1711889437431,-5575.02,0.000469,5]
[321086763,1711889437441,-155.62,0.000469,5]
[321086764,1711889437451,-5575.02,0.000469,5]
[321086765,1711889437461,-5575.02,0.000469,5]
[321086766,1711889437471,-155.62,0.000469,5]
[321086767,1711889437481,-155.62,0.000469,5]
[321086768,1711889437491,-5575.02,0.000469,5]
[321086769,1711889437501,-155.62,0.000469,5]
[321086770,1711889437511,-5575.02,0.000469,5]
[321086771,1711889437521,-155.62,0.000469,5]
[321086772,1711889437531,-5575.02,0.000469,5]
[321086773,1711889437540,-155.62,0.000469,5]
[321086774,1711889437550,-5575.02,0.000469,5]
[321086775,1711889437560,-5575.02,0.000469,5]
[321086776,1711889437570,-5575.02,0.000469,5]
[321086777,1711889437579,-246.72837867,0.00046902,30]
[321086778,1711889437590,-150.0,0.00046918,30]
[321086779,1711889437599,-7000.0,0.00046933,2]
[321086780,1711889437609,-150.0,0.00046944,30]
[321086781,1711889437619,-192.21089271,0.0004695,7]
[321086782,1711889437629,-246.72837867,0.00046955,30]
[321086783,1711889437639,-239.161564,0.00046978,14]
[321086784,1711889437649,-239.161564,0.00046978,14]
[321086785,1711889437659,-1028.0,0.0004698,30]
[321086786,1711889437669,-150.0,0.00046986,30]
[321086787,1711889437679,-150.0,0.00047,10]
[321086788,1711889437688,-500.0,0.00047,100]
[321086789,1711889437698,-352.78098981,0.00047,120]
[321086790,1711889437708,-1000.0,0.00047,120]
[321086791,1711889437717,-150.0,0.00047,9]
[321086792,1711889437727,-246.72837867,0.00047007,30]
[321086793,1711889437736,-150.0,0.00047039,30]
[321086794,1711889437746,-150.0,0.00047055,30]
[321086795,1711889437755,-246.72837867,0.0004706,30]
[321086796,1711889437765,-408.39,0.000471,7]
[321086797,1711889437775,-246.72837867,0.00047112,30]
[321086798,1711889437785,-155.57501818,0.00047122,2]
[321086799,1711889437794,-511.1928647,0.00047123,4]
[321086800,1711889437804,-500.0,0.00047123,4]
[321086801,1711889437813,-150.0,0.00047123,30]
[321086802,1711889437823,-150.0,0.00047133,30]
[321086803,1711889437833,-246.72837867,0.00047165,30]
[321086804,1711889437842,-150.0,0.00047192,30]
[321086805,1711889437853,-246.72837867,0.00047218,30]
[321086806,1711889437863,-154.61966421,0.00047223,30]
[321086807,1711889437873,-150.0,0.00047228,30]
[321086808,1711889437883,-150.0,0.0004725,30]
[321086809,1711889437892,-150.0,0.0004726,30]
[321086810,1711889437901,-246.72837867,0.0004727,30]
[321086811,1711889437910,-246.72837867,0.00047323,30]
[321086812,1711889437920,-150.0,0.00047323,30]
[321086813,1711889437929,-150.0,0.00047329,30]
[321086815,1711889437939,-246.72837867,0.00047375,30]
[321086816,1711889437948,-500.0,0.00047397,30]
[321086817,1711889437958,-150.0,0.00047397,30]
[321086818,1711889437967,-369.82,0.000474,7]
[321086819,1711889437977,-399.25,0.000474,7]
[321086820,1711889437987,-640.0,0.000474,37]
[321086821,1711889437997,-150.0,0.00047417,30]
[321086822,1711889438006,-246.72837867,0.00047428,30]
[321086823,1711889438016,-150.0,0.00047466,30]
[321086824,1711889438025,-246.72837867,0.0004748,30]
[321086825,1711889438035,-150.0,0.00047495,120]
[321086827,1711889438045,-2000.0,0.000475,120]
[321086828,1711889438055,-150.0,0.000475,9]
[321086829,1711889438065,-150.0,0.00047512,30]
[321086831,1711889438075,-246.72837867,0.00047533,30]
[321086832,1711889438084,-150.0,0.00047534,30]
[321086833,1711889438093,-184.41,0.00047535,2]
[321086834,1711889438105,-435.54348706,0.00047538,2]
[321086835,1711889438114,-246.72837867,0.00047586,30]
[321086836,1711889438124,-5127.28304637,0.000476,2]
[321086838,1711889438133,-10633.36610854,0.000476,10]
[321086839,1711889438143,-150.0,0.00047603,30]
[321086840,1711889438155,-150.0,0.00047607,30]
[321086841,1711889438165,-3688.4291422,0.00047638,2]
[321086842,1711889438175,-246.72837867,0.00047638,30]
[321086843,1711889438184,-150.0,0.0004765,30]
[321086844,1711889438194,-5800.0,0.00047667,7]
[321086846,1711889438203,-150.0,0.00047671,30]
[321086847,1711889438213,-1013.1,0.00047675,2]
[321086848,1711889438222,-5800.0,0.00047675,7]
[321086849,1711889438232,-5800.0,0.00047684,7]
[321086850,1711889438242,-246.72837867,0.00047691,30]
[321086851,1711889438251,-150.0,0.00047701,30]
[321086852,1711889438261,-150.0,0.0004774,30]
[321086853,1711889438270,-246.72837867,0.00047743,30]
[321086854,1711889438279,-1054.04414503,0.00047777,2]
[321086855,1711889438289,-219.28277704,0.00047777,2]
[321086856,1711889438298,-315.26,0.00047785,2]
[321086857,1711889438307,-246.72837867,0.00047796,30]
[321086858,1711889438317,-150.0,0.00047796,30]
[321086859,1711889438326,-948.13875683,0.000478,120]
[321086860,1711889438336,-150.0,0.00047808,30]
[321086861,1711889438345,-246.72837867,0.00047849,30]
[321086862,1711889438355,-169.77002695,0.00047851,2]
[321086863,1711889438364,-1460.74479206,0.00047851,2]
[321086864,1711889438373,-1138.60611,0.00047869,16]
[321086865,1711889438383,-22809.10590182,0.00047877,2]
[321086866,1711889438392,-150.0,0.00047877,30]
[321086867,1711889438401,-150.0,0.00047891,30]
[321086868,1711889438410,-408.39,0.000479,7]
[321086869,1711889438419,-640.0,0.000479,38]
[321086870,1711889438429,-246.72837867,0.00047901,30]
[321086871,1711889438439,-4408.00426294,0.00047916,7]
[321086872,1711889438448,-500.0,0.00047945,30]
[321086873,1711889438458,-150.0,0.00047945,30]
[321086874,1711889438468,-10114.48167125,0.0004795,120]
[321086875,1711889438477,-150.0,0.00047951,120]
[321086876,1711889438487,-246.72837867,0.00047954,30]
[321086877,1711889438496,-150.0,0.00047985,30]
[321086878,1711889438505,-3700.0079407,0.00048,2]
[321086879,1711889438514,-9000.0,0.00048,2]
[321086880,1711889438523,-180.0,0.00048,10]
[321086881,1711889438533,-500.0,0.00048,100]
[321086882,1711889438543,-209.95555556,0.00048,120]
[321086883,1711889438553,-500.0,0.00048,120]
[321086884,1711889438563,-1000.0,0.00048,120]
[321086885,1711889438572,-369.82,0.00048,7]
[321086886,1711889438581,-399.25,0.00048,7]
[321086887,1711889438590,-344.829872,0.00048,25]
[321086888,1711889438601,-150.0,0.00048,9]
[321086889,1711889438611,-246.72837867,0.00048006,30]
[321086890,1711889438620,-150.0,0.00048014,30]
[321086891,1711889438631,-150.0,0.00048051,30]
[321086892,1711889438640,-246.72837867,0.00048059,30]
[321086893,1711889438650,-4139.22232361,0.00048076,24]
[321086894,1711889438660,-150.0,0.0004808,30]
[321086896,1711889438669,-150.0,0.00048082,30]
[321086902,1711889438678,-246.72837867,0.00048111,30]
[321086904,1711889438722,-2847.95357372,0.00048119,7]
[321086923,1711889438895,-854.8607206,0.00048119,7]
[321086926,1711889438906,-1412.03,0.00048119,7]
[321086928,1711889438918,-1533.949882,0.00048119,7]
[321086929,1711889438946,-1200.22505523,0.00048119,7]
[321086930,1711889438958,-1353.96565644,0.00048119,7]
[321086931,1711889438969,-562.4996314,0.00048119,7]
[321086932,1711889438980,-956.96982121,0.00048119,7]
[321086933,1711889438991,-554.58560878,0.00048119,7]
[321086934,1711889439003,-1495.96092239,0.00048119,7]
[321086942,1711889439378,-241.798,0.00041811,2]
[321086943,1711889439387,-1001.40795837,0.000479,2]
[321086944,1711889439397,-10319.58711036,0.00048119,7]
[321086945,1711889439406,-150.0,0.00048151,30]
[321086946,1711889439415,-246.72837867,0.00048164,30]
[321086947,1711889439424,-150.0,0.00048175,30]
[321086948,1711889439433,-151.0,0.00048177,2]
[321086949,1711889439442,-250.49088,0.00048177,2]
[321086950,1711889439451,-246.72837867,0.00048217,30]
[321086951,1711889439460,-150.0,0.00048219,30]
[321086952,1711889439470,-478.94,0.00048254,2]
[321086953,1711889439478,-246.72837867,0.00048269,30]
[321086954,1711889439488,-150.0,0.00048269,30]
[321086955,1711889439497,-150.0,0.00048286,120]
[321086956,1711889439506,-150.0,0.00048288,30]
[321086957,1711889439515,-246.72837867,0.00048322,30]
[321086958,1711889439525,-150.0,0.00048356,30]
[321086959,1711889439534,-150.0,0.00048364,30]
[321086960,1711889439543,-246.72837867,0.00048374,30]
[321086961,1711889439552,-2000.0,0.000484,30]
[321086962,1711889439561,-775.292535,0.000484,38]
[321086963,1711889439570,-150.0,0.00048425,30]
[321086964,1711889439579,-246.72837867,0.00048427,30]
[321086965,1711889439588,-150.0,0.00048451,30]
[321086966,1711889439598,-150.0,0.00048458,30]
[321086967,1711889439608,-246.72837867,0.0004848,30]
[321086968,1711889439617,-3466.30906793,0.0004849,10]
[321086969,1711889439626,-500.0,0.00048493,30]
[321086970,1711889439635,-150.0,0.00048493,30]
[321086971,1711889439644,-886.52692303,0.000485,120]
[321086972,1711889439653,-150.0,0.000485,9]
[321086973,1711889439662,-239.161564,0.00048527,14]
[321086974,1711889439671,-3044.379,0.00048528,120]
[321086975,1711889439679,-3044.38,0.00048528,120]
[321086976,1711889439688,-165.8818499,0.00048528,120]
[321086977,1711889439697,-3044.38,0.00048528,120]
[321086978,1711889439707,-3044.38,0.00048528,120]
[321086979,1711889439715,-3044.379,0.00048528,120]
[321086980,1711889439724,-246.72837867,0.00048532,30]
[321086981,1711889439733,-300.0,0.00048534,2]
[321086982,1711889439742,-1013.1,0.0004855,2]
[321086983,1711889439751,-150.0,0.00048553,30]
[321086984,1711889439760,-150.0,0.00048562,30]
[321086985,1711889439769,-246.72837867,0.00048585,30]
[321086986,1711889439778,-209.95555556,0.00048603,120]
[321086987,1711889439787,-150.0,0.0004863,30]
[321086988,1711889439797,-246.72837867,0.00048637,30]
[321086989,1711889439805,-150.0,0.00048648,30]
[321086990,1711889439814,-246.72837867,0.0004869,30]
[321086991,1711889439823,-150.0,0.00048699,30]
[321086992,1711889439832,-1008.0,0.000487,117]
[321086993,1711889439841,-246.72837867,0.00048742,30]
[321086994,1711889439850,-150.0,0.00048742,30]
[321086995,1711889439860,-150.0,0.00048767,30]
[321086996,1711889439869,-246.72837867,0.00048795,30]
[321086997,1711889439878,-1013.1,0.000488,2]
[321086998,1711889439888,-315.26,0.000488,2]
[321086999,1711889439897,-800.0,0.00048817,2]
[321087000,1711889439907,-150.0,0.00048836,30]
[321087001,1711889439916,-150.0,0.00048837,30]
[321087002,1711889439925,-246.72837867,0.00048848,30]
[321087003,1711889439934,-150.0,0.00048852,30]
[321087004,1711889439942,-1000.000001,0.0004888,2]
[321087005,1711889439951,-941.31255927,0.000489,45]
[321087006,1711889439960,-246.72837867,0.000489,30]
[321087008,1711889439969,-150.0,0.00048904,30]
[321087009,1711889439978,-683.76579203,0.00048932,60]
[321087010,1711889439987,-150.0,0.00048932,30]
[321087011,1711889439997,-246.72837867,0.00048953,30]
[321087012,1711889440005,-150.0,0.00048973,30]
[321087013,1711889440015,-302.0,0.00048987,4]
[321087014,1711889440023,-1200.0,0.00049,4]
[321087016,1711889440032,-41210.42672992,0.00049,2]
[321087018,1711889440041,-21449.53455675,0.00049,2]
[321087019,1711889440050,-3963.5670155,0.00049,2]
[321087020,1711889440059,-60395.4175107,0.00049,5]
[321087021,1711889440068,-519.73212412,0.00049,7]
[321087022,1711889440077,-1103.45,0.00049,5]
[321087023,1711889440086,-876.66202315,0.00049,120]
[321087024,1711889440095,-3201.83250999,0.00049,30]
[321087025,1711889440105,-696.13981054,0.00049,30]
[321087026,1711889440114,-500.0,0.00049,100]
[321087027,1711889440122,-1000.95632533,0.00049,30]
[321087028,1711889440131,-1000.0,0.00049,120]
[321087029,1711889440140,-150.0,0.00049,9]
[321087030,1711889440149,-246.72837867,0.00049005,30]
[321087031,1711889440162,-468.70399312,0.00049014,29]
[321087032,1711889440172,-5413.64724091,0.00049014,28]
[321087033,1711889440180,-150.0,0.00049026,30]
[321087034,1711889440189,-500.0,0.00049041,30]
[321087035,1711889440198,-150.0,0.00049041,30]
[321087037,1711889440207,-184.41,0.00049055,2]
[321087038,1711889440216,-246.72837867,0.00049058,30]
[321087040,1711889440225,-869.4297637,0.00049067,14]
[321087041,1711889440235,-315.26,0.0004907,2]
[321087042,1711889440244,-4817.82399859,0.00049078,2]
[321087043,1711889440253,-10359.85038304,0.0004909,2]
[321087044,1711889440262,-150.0,0.0004911,30]
[321087045,1711889440271,-246.72837867,0.0004911,30]
[321087046,1711889440281,-150.0,0.00049121,30]
[321087047,1711889440290,-683.76579203,0.00049123,60]
[321087048,1711889440299,-246.72837867,0.00049163,30]
[321087049,1711889440309,-150.0,0.00049178,30]
[321087050,1711889440318,-209.95555556,0.00049205,120]
[321087051,1711889440327,-246.72837867,0.00049216,30]
[321087052,1711889440337,-150.0,0.00049216,30]
[321087053,1711889440346,-150.0,0.00049247,30]
[321087054,1711889440356,-150.0,0.00049252,30]
[321087055,1711889440365,-246.72837867,0.00049268,30]
[321087056,1711889440375,-3750.0,0.000493,2]
[321087057,1711889440384,-150.0,0.0004931,30]
[321087058,1711889440393,-200.0,0.00049315,4]
[321087059,1711889440401,-200.0,0.00049315,4]
[321087060,1711889440411,-200.0,0.00049315,4]
[321087061,1711889440420,-200.0,0.00049315,4]
[321087062,1711889440429,-200.0,0.00049315,4]
[321087063,1711889440438,-200.0,0.00049315,4]
[321087064,1711889440447,-200.0,0.00049315,4]
[321087065,1711889440456,-200.0,0.00049315,4]
[321087066,1711889440465,-200.0,0.00049315,4]
[321087067,1711889440474,-200.0,0.00049315,4]
[321087068,1711889440483,-200.0,0.00049315,4]
[321087069,1711889440492,-207.24712471,0.00049315,4]
[321087070,1711889440501,-500.0,0.00049315,4]
[321087071,1711889440510,-500.0,0.00049315,4]
[321087072,1711889440519,-500.0,0.00049315,4]
[321087073,1711889440529,-500.0,0.00049315,4]
[321087074,1711889440538,-500.0,0.00049315,4]
[321087075,1711889440548,-500.0,0.00049315,4]
[321087076,1711889440557,-500.0,0.00049315,4]
[321087077,1711889440567,-500.0,0.00049315,4]
[321087078,1711889440576,-500.0,0.00049315,4]
[321087079,1711889440585,-500.0,0.00049315,4]
[321087080,1711889440595,-371.49218243,0.00049315,4]
[321087081,1711889440605,-3000.0,0.00049315,120]
[321087082,1711889440614,-2093.29,0.00049315,60]
[321087083,1711889440623,-1088.78782023,0.00049315,60]
[321087084,1711889440632,-500.0,0.00049315,21]
[321087085,1711889440642,-683.76579203,0.00049315,120]
[321087086,1711889440651,-150.0,0.00049315,30]
[321087087,1711889440661,-246.72837867,0.00049321,30]
[321087088,1711889440670,-246.72837867,0.00049373,30]
[321087089,1711889440679,-150.0,0.00049384,30]
[321087090,1711889440688,-150.0,0.00049405,30]
[321087091,1711889440697,-1013.1,0.00049425,2]
[321087092,1711889440707,-246.72837867,0.00049426,30]
[321087093,1711889440717,-3000.0,0.00049452,120]
[321087094,1711889440726,-1028.0,0.00049452,30]
[321087095,1711889440736,-150.0,0.00049452,30]
[321087096,1711889440745,-150.0,0.00049452,30]
[321087097,1711889440755,-6699.0981864,0.00049466,2]
[321087098,1711889440764,-246.72837867,0.00049479,30]
[321087099,1711889440774,-683.76579203,0.00049479,120]
[321087100,1711889440783,-150.0,0.000495,30]
[321087101,1711889440792,-156841.7202026,0.000495,10]
[321087102,1711889440802,-208.2730587,0.000495,120]
[321087103,1711889440812,-239.161564,0.000495,120]
[321087104,1711889440821,-150.0,0.000495,10]
[321087105,1711889440830,-150.0,0.00049521,30]
[321087106,1711889440839,-246.72837867,0.00049531,30]
[321087107,1711889440849,-246.72837867,0.00049584,30]
[321087108,1711889440859,-500.0,0.00049589,90]
[321087109,1711889440868,-3000.0,0.00049589,120]
[321087110,1711889440878,-150.0,0.00049589,30]
[321087111,1711889440887,-150.0,0.00049594,30]
[321087112,1711889440896,-315.93064052,0.00049612,120]
[321087113,1711889440906,-246.72837867,0.00049636,30]
[321087114,1711889440915,-150.0,0.00049652,30]
[321087115,1711889440924,-150.0,0.00049658,30]
[321087116,1711889440933,-683.76579203,0.00049671,120]
[321087117,1711889440943,-1013.1,0.00049675,2]
[321087118,1711889440952,-516.29654556,0.0004968,120]
[321087119,1711889440961,-246.72837867,0.00049689,30]
[321087120,1711889440971,-150.0,0.00049689,30]
[321087121,1711889440980,-2052.50824774,0.00049726,120]
[321087122,1711889440991,-150.0,0.00049726,30]
[321087123,1711889441000,-246.72837867,0.00049741,30]
[321087124,1711889441009,-150.0,0.00049784,30]
[321087125,1711889441018,-246.72837867,0.00049794,30]
[321087126,1711889441027,-150.0,0.00049795,30]
[321087127,1711889441036,-200.0,0.00049795,120]
[321087128,1711889441046,-234.42433729,0.000498,30]
[321087129,1711889441055,-226.6413866,0.000498,60]
[321087130,1711889441066,-209.95555556,0.00049808,120]
[321087131,1711889441075,-604.0,0.0004981,7]
[321087132,1711889441085,-246.72837867,0.00049847,30]
[321087133,1711889441094,-497.37868799,0.00049863,120]
[321087134,1711889441103,-683.76579203,0.00049863,120]
[321087135,1711889441112,-150.0,0.00049863,30]
[321087136,1711889441121,-150.0,0.00049878,30]
[321087137,1711889441131,-152.0,0.00049879,5]
[321087138,1711889441140,-246.72837867,0.00049899,30]
[321087139,1711889441150,-39961.37927273,0.0004991,2]
[321087140,1711889441160,-150.0,0.00049932,30]
[321087141,1711889441169,-246.72837867,0.00049952,30]
[321087142,1711889441178,-150.0,0.00049973,30]
[321087143,1711889441188,-200.0,0.00049987,2]
[321087144,1711889441197,-343.80863133,0.00049998,120]
[321087145,1711889441207,-1000.0,0.00049999,120]
[321087146,1711889441216,-27055.82798983,0.0005,4]
[321087147,1711889441225,-150.0,0.0005,27]
[321087148,1711889441235,-155.36489271,0.0005,2]
[321087149,1711889441244,-5070.0,0.0005,10]
[321087150,1711889441253,-239.14977073,0.0005,14]
[321087151,1711889441262,-269.0,0.0005,2]
[321087152,1711889441272,-2567.60742477,0.0005,5]
[321087153,1711889441281,-953.30147649,0.0005,2]
[321087154,1711889441291,-4058.0,0.0005,5]
[321087155,1711889441301,-837.77020057,0.0005,2]
[321087156,1711889441310,-1000.0,0.0005,10]
[321087157,1711889441319,-5963.01134445,0.0005,2]
[321087158,1711889441329,-4266.05486882,0.0005,10]
[321087159,1711889441339,-1134.54866404,0.0005,30]
[321087160,1711889441349,-161.69621289,0.0005,30]
[321087161,1711889441359,-500.0,0.0005,120]
[321087162,1711889441369,-151.0,0.0005,120]
[321087163,1711889441378,-511.63134141,0.0005,30]
[321087164,1711889441388,-39752.91736351,0.0005,120]
[321087165,1711889441397,-500.0,0.0005,120]
[321087166,1711889441407,-2000.0,0.0005,120]
[321087167,1711889441416,-200.0,0.0005,120]
[321087168,1711889441426,-167.0,0.0005,120]
[321087169,1711889441435,-1825.8734563,0.0005,120]
[321087170,1711889441444,-304.97280386,0.0005,30]
[321087171,1711889441454,-333.82877435,0.0005,120]
[321087172,1711889441463,-32445.40194191,0.0005,15]
[321087173,1711889441472,-1083.55384211,0.0005,30]
[321087174,1711889441482,-171.86455948,0.0005,120]
[321087175,1711889441493,-511.04540135,0.0005,30]
[321087176,1711889441502,-793.0,0.0005,30]
[321087177,1711889441512,-500.0,0.0005,120]
[321087178,1711889441521,-500.0,0.0005,120]
[321087179,1711889441531,-500.0,0.0005,120]
[321087180,1711889441541,-500.0,0.0005,120]
[321087181,1711889441550,-500.0,0.0005,120]
[321087182,1711889441560,-500.0,0.0005,120]
[321087183,1711889441569,-500.0,0.0005,120]
[321087184,1711889441578,-500.0,0.0005,120]
[321087185,1711889441588,-648.0,0.0005,120]
[321087186,1711889441597,-2055.14,0.0005,120]
[321087187,1711889441607,-222.98536116,0.0005,120]
[321087188,1711889441617,-1000.0,0.0005,120]
[321087189,1711889441627,-3181.0,0.0005,8]
[321087190,1711889441637,-8000.0,0.0005,10]
[321087191,1711889441646,-2893.5,0.0005,120]
[321087192,1711889441655,-2176.9,0.0005,21]
[321087193,1711889441665,-200.0,0.0005,27]
[321087194,1711889441674,-150.0,0.0005,10]
[321087195,1711889441684,-200.0,0.0005,120]
[321087196,1711889441694,-150.0,0.0005,30]
[321087197,1711889441703,-246.72837867,0.00050004,30]
[321087198,1711889441713,-150.0,0.00050019,120]
[321087199,1711889441723,-150.0,0.00050053,30]
[321087200,1711889441732,-683.76579203,0.00050055,120]
[321087201,1711889441742,-246.72837867,0.00050057,30]
[321087202,1711889441751,-150.0,0.00050067,30]
[321087203,1711889441761,-150.0,0.00050069,30]
[321087204,1711889441770,-315.26,0.00050085,2]
[321087205,1711889441781,-246.72837867,0.0005011,30]
[321087206,1711889441790,-2093.29,0.00050136,64]
[321087207,1711889441801,-500.0,0.00050137,90]
[321087208,1711889441810,-150.0,0.00050137,30]
[321087209,1711889441820,-246.72837867,0.00050162,30]
[321087210,1711889441830,-150.0,0.00050162,30]
[321087211,1711889441840,-150.0,0.00050206,30]
[321087212,1711889441850,-246.72837867,0.00050215,30]
[321087213,1711889441860,-683.76579203,0.00050247,120]
[321087214,1711889441870,-150.0,0.00050257,30]
[321087215,1711889441879,-246.72837867,0.00050267,30]
[321087216,1711889441889,-150.0,0.00050274,30]
[321087217,1711889441898,-1013.1,0.000503,2]
[321087218,1711889441908,-246.72837867,0.0005032,30]
[321087219,1711889441918,-150.0,0.00050343,30]
[321087220,1711889441928,-150.0,0.00050351,30]
[321087221,1711889441937,-315.26,0.00050355,2]
[321087222,1711889441947,-500.0,0.0005037,90]
[321087223,1711889441956,-246.72837867,0.00050372,30]
[321087224,1711889441966,-2006.36,0.00050374,120]
[321087225,1711889441975,-4139.22232361,0.00050379,27]
[321087226,1711889441985,-592.21,0.0005038,120]
[321087227,1711889441994,-209.95555556,0.00050411,120]
[321087228,1711889442003,-683.76579203,0.00050411,120]
[321087229,1711889442013,-150.0,0.00050411,30]
[321087230,1711889442022,-246.72837867,0.00050425,30]
[321087231,1711889442032,-9279.00636762,0.00050434,29]
[321087232,1711889442042,-9481.81369771,0.0005044,31]
[321087233,1711889442052,-5000.0,0.0005044,30]
[321087234,1711889442061,-150.0,0.00050446,30]
[321087235,1711889442071,-150.0,0.00050453,30]
[321087236,1711889442081,-9262.09053218,0.00050456,35]
[321087237,1711889442090,-5000.0,0.00050456,33]
[321087238,1711889442099,-5000.0,0.00050456,32]
[321087239,1711889442110,-246.72837867,0.00050478,30]
[321087240,1711889442120,-150.0,0.0005048,30]
[321087241,1711889442130,-478.94,0.00050518,2]
[321087242,1711889442139,-246.72837867,0.0005053,30]
[321087243,1711889442149,-150.0,0.00050541,30]
[321087244,1711889442159,-150.0,0.00050548,30]
[321087245,1711889442170,-1013.1,0.0005055,2]
[321087246,1711889442179,-150.0,0.00050557,120]
[321087247,1711889442189,-184.41,0.00050575,2]
[321087248,1711889442198,-246.72837867,0.00050583,30]
[321087249,1711889442207,-683.76579203,0.00050603,120]
[321087250,1711889442217,-150.0,0.00050617,30]
[321087251,1711889442226,-246.72837867,0.00050635,30]
[321087252,1711889442236,-150.0,0.00050635,30]
[321087253,1711889442246,-166.99392,0.00050648,4]
[321087254,1711889442255,-478.7410405,0.00050685,90]
[321087255,1711889442265,-150.0,0.00050685,30]
[321087256,1711889442275,-246.72837867,0.00050688,30]
[321087257,1711889442284,-150.0,0.0005073,30]
[321087258,1711889442294,-246.72837867,0.0005074,30]
[321087259,1711889442304,-150.0,0.00050754,30]
[321087260,1711889442313,-246.72837867,0.00050793,30]
[321087261,1711889442323,-683.76579203,0.00050795,120]
[321087262,1711889442332,-150.0,0.00050822,30]
[321087263,1711889442342,-150.0,0.00050825,30]
[321087264,1711889442353,-246.72837867,0.00050846,30]
[321087265,1711889442362,-150.0,0.00050854,30]
[321087266,1711889442372,-534.9581,0.0005088,7]
[321087267,1711889442381,-150.0,0.00050891,30]